bitfinex/quotes_SOLUSD_20240603
["timestamp","ask_amount","ask_price","bid_price","bid_amount"]
[1717423100257,0.34,166.53,166.46,6.93]
[1717423100462,2.2222,166.5,166.42,0.8174646]
[1717423100666,2.2222,166.5,166.45,6.93]
[1717423101274,2.2222,166.5,166.46,6.93]
[1717423101793,2.2222,166.5,166.45,6.93]
[1717423102084,2.2222,166.5,166.42,0.8174646]
[1717423102274,2.2221,166.51,166.42,0.8174646]
[1717423103378,24.24304041,166.53,166.43,2.223]
[1717423103379,2.2219,166.52,166.43,2.223]
[1717423103885,2.2219,166.52,166.42,0.8174646]
[1717423103886,4.4479,166.54,166.42,0.8174646]
[1717423104095,2.2221,166.51,166.42,0.8174646]
[1717423104265,2.2221,166.51,166.42,3.0406646]
[1717423104467,2.2223,166.49,166.42,0.8174646]
[1717423104665,4.7838,166.53,166.42,0.8174646]
[1717423104870,2.2222,166.5,166.42,0.8174646]
[1717423105073,22.09740484,166.53,166.42,0.8174646]
[1717423105405,21.75795625,166.52,166.42,0.8174646]
[1717423105694,2.2226,166.47,166.42,0.8174646]
[1717423106485,2.2227,166.46,166.42,0.8174646]
[1717423107203,2.2226,166.47,166.42,0.8174646]
[1717423108267,0.17,166.46,166.42,0.8174646]
[1717423108468,0.17,166.46,166.34,2.2243]
[1717423108677,0.17,166.46,166.32,2.2245]
[1717423108971,2.2233,166.42,166.33,2.2244]
[1717423109180,2.2231,166.44,166.34,20.8]
[1717423109387,2.2231,166.44,166.35,2.2242]
[1717423109688,2.2231,166.43,166.33,23.0243]
[1717423109885,2.2231,166.43,166.34,2.2243]
[1717423110195,2.223,166.44,166.34,2.2243]
[1717423110525,0.17,166.47,166.38,2.2238]
[1717423110797,2.2224,166.49,166.38,2.2237]
[1717423111004,42.1648456,166.52,166.37,20.97]
[1717423111005,5.76354693,166.51,166.37,20.97]
[1717423111183,2.2223,166.49,166.38,0.53202261]
[1717423111384,2.2222,166.5,166.39,2.2235]
[1717423111578,2.2222,166.5,166.4,2.58547909]
[1717423111777,2.2226,166.47,166.38,0.17]
[1717423111980,2.2225,166.48,166.37,2.5638]
[1717423112206,2.2225,166.48,166.38,2.2238]
[1717423112382,2.2223,166.5,166.39,2.5636]
[1717423112584,2.2223,166.5,166.4,2.2235]
[1717423112999,2.2223,166.49,166.39,2.5636]
[1717423113209,2.2224,166.48,166.39,0.17]
[1717423113387,2.2224,166.49,166.38,2.3937]
[1717423113716,2.2226,166.47,166.38,0.17]
[1717423114001,2.2227,166.46,166.38,0.17]
[1717423114240,40.4543,166.51,166.31,6.6742]
[1717423114382,2.2229,166.45,166.35,2.2241]
[1717423114796,2.2227,166.46,166.36,2.224]
[1717423116585,2.2227,166.46,166.37,0.89155171]
[1717423117291,2.2227,166.46,166.36,2.224]
[1717423117595,2.223,166.44,166.35,0.34]
[1717423117801,2.223,166.44,166.31,20.0]
[1717423118003,2.223,166.44,166.32,0.34]
[1717423118589,2.223,166.44,166.32,0.17]
[1717423118898,96.01,166.49,166.27,11.1263]
[1717423119095,2.2233,166.42,166.32,2.2244]
[1717423119514,2.2233,166.42,166.33,2.2244]
[1717423119817,8.8907,166.47,166.32,2.2245]
[1717423119999,2.2234,166.41,166.32,2.2245]
[1717423121017,2.2233,166.42,166.33,2.2244]
[1717423121200,0.34,166.46,166.34,2.3942]
[1717423121399,2.2232,166.43,166.34,2.3942]
[1717423121613,2.223,166.44,166.35,2.2241]
[1717423121820,4.4452,166.47,166.34,2.3943]
[1717423122024,2.2234,166.41,166.34,0.17]
[1717423122595,2.2234,166.41,166.33,2.5644]
[1717423122815,0.17,166.46,166.33,2.5644]
[1717423123001,2.2233,166.42,166.33,2.5644]
[1717423123612,2.2233,166.42,166.34,2.2243]
[1717423123816,2.2236,166.4,166.33,0.17]
[1717423124022,2.2234,166.41,166.32,2.2246]
[1717423124318,2.2236,166.4,166.31,2.5647]
[1717423124698,11.1133,166.45,166.26,0.8174646]
[1717423124901,2.2237,166.39,166.3,2.2248]
[1717423125223,2.2235,166.4,166.31,2.2247]
[1717423125435,9.2323,166.44,166.27,4.4505]
[1717423125436,9.2323,166.44,166.32,2.2246]
[1717423125638,9.2323,166.44,166.27,4.4505]
[1717423125639,2.2235,166.4,166.31,2.2247]
[1717423126322,2.2235,166.4,166.32,2.2246]
[1717423126736,2.2234,166.41,166.32,2.2246]
[1717423127236,2.2233,166.42,166.33,2.2244]
[1717423127616,2.2234,166.41,166.33,2.2244]
[1717423127817,2.2236,166.4,166.27,6.6756]
[1717423128118,2.2236,166.4,166.26,31.9439646]
[1717423128119,2.2237,166.39,166.31,2.2247]
[1717423128711,4.446,166.44,166.31,2.2247]
[1717423128712,2.2235,166.4,166.31,2.2247]
[1717423128912,2.2234,166.41,166.32,2.2246]
[1717423129532,2.2235,166.4,166.31,2.5647]
[1717423130140,2.2234,166.41,166.32,2.2246]
[1717423130333,17.7822,166.45,166.33,2.2244]
[1717423130334,2.2233,166.42,166.33,2.2244]
[1717423130642,2.2234,166.41,166.32,2.2245]
[1717423131235,2.2234,166.41,166.33,2.2244]
[1717423131744,2.2235,166.4,166.32,2.2246]
[1717423131915,11.1133,166.45,166.32,2.2246]
[1717423132116,2.2234,166.41,166.33,2.2244]
[1717423132623,2.2233,166.42,166.33,2.2244]
[1717423133236,2.2234,166.41,166.33,2.2244]
[1717423133662,2.2233,166.42,166.34,0.17]
[1717423133845,2.2233,166.42,166.34,0.34]
[1717423134054,2.2233,166.42,166.38,6.94]
[1717423134527,2.2233,166.42,166.34,0.34]
[1717423134727,2.2233,166.42,166.38,6.94]
[1717423135669,2.2234,166.41,166.32,29.9845]
[1717423135876,2.2234,166.41,166.37,6.94]
[1717423136447,2.2234,166.41,166.33,0.34]
[1717423136658,2.2235,166.4,166.33,0.17]
[1717423136851,2.2235,166.4,166.36,6.94]
[1717423137755,2.2234,166.41,166.37,6.94]
[1717423138363,4.446,166.44,166.37,6.94]
[1717423138656,2.2234,166.41,166.37,6.94]
[1717423139158,2.2233,166.42,166.38,6.94]
[1717423139332,2.2233,166.42,166.37,6.94]
[1717423139532,2.2234,166.41,166.37,6.94]
[1717423139932,11.1133,166.45,166.38,6.94]
[1717423140157,18.0533,166.45,166.34,2.2243]
[1717423140364,11.1133,166.45,166.4,6.94]
[1717423140530,2.2229,166.45,166.36,2.224]
[1717423140734,2.2229,166.45,166.41,6.94]
[1717423141157,2.2229,166.45,166.42,6.94]
[1717423141564,4.4446,166.5,166.42,6.94]
[1717423141767,2.2227,166.46,166.42,6.94]
[1717423142060,9.1626,166.47,166.43,6.94]
[1717423142266,2.2226,166.47,166.43,6.94]
[1717423142580,6.94,166.48,166.45,6.94]
[1717423142740,2.2225,166.48,166.44,6.94]
[1717423143170,2.2226,166.47,166.44,6.94]
[1717423143842,2.2226,166.47,166.43,6.94]
[1717423144053,2.2225,166.48,166.44,6.94]
[1717423144472,2.2226,166.47,166.44,6.94]
[1717423144871,6.94,166.49,166.44,6.94]
[1717423145237,6.94,166.49,166.43,6.94]
[1717423145564,2.2225,166.48,166.43,6.94]
[1717423145768,2.2226,166.47,166.39,2.2236]
[1717423145970,2.2226,166.47,166.42,6.94]
[1717423146167,2.2227,166.46,166.42,6.94]
[1717423146366,2.2226,166.47,166.42,6.94]
[1717423146587,2.2226,166.47,166.43,6.94]
[1717423147081,2.2225,166.48,166.43,6.94]
[1717423147282,2.2227,166.46,166.38,0.34]
[1717423147498,2.2227,166.46,166.42,6.94]
[1717423147783,2.2227,166.46,166.38,2.2238]
[1717423147990,2.2227,166.46,166.4,6.94]
[1717423148226,2.2227,166.46,166.38,2.2238]
[1717423148227,2.2227,166.46,166.41,6.94]
[1717423148515,2.2227,166.46,166.38,2.2238]
[1717423148827,11.3847,166.49,166.39,6.94]
[1717423149120,2.2229,166.45,166.4,6.94]
[1717423149299,2.2227,166.46,166.4,6.94]
[1717423149483,11.3847,166.49,166.41,6.94]
[1717423149484,2.2226,166.47,166.41,6.94]
[1717423149903,2.2226,166.47,166.42,6.94]
[1717423150211,9.1623,166.49,166.45,6.94]
[1717423150792,2.2226,166.47,166.4,27.76]
[1717423151204,2.2224,166.49,166.4,27.76]
[1717423152112,17.31783724,166.51,166.46,6.94]
[1717423152299,2.2221,166.51,166.47,6.94]
[1717423152486,2.2223,166.49,166.47,6.94]
[1717423152687,2.2221,166.51,166.46,6.94]
[1717423153289,2.2222,166.5,166.46,6.94]
[1717423154297,2.2221,166.51,166.46,6.94]
[1717423154501,2.2221,166.51,166.43,2.2231]
[1717423154502,2.2221,166.51,166.47,6.94]
[1717423154816,26.47899145,166.52,166.48,6.94]
[1717423155003,9.1619,166.52,166.48,6.94]
[1717423155388,2.2219,166.52,166.48,6.94]
[1717423155583,2.2218,166.53,166.49,6.94]
[1717423155791,2.222,166.52,166.49,6.94]
[1717423155990,2.2221,166.51,166.43,2.223]
[1717423156209,2.2218,166.53,166.48,6.94]
[1717423156794,2.2219,166.52,166.48,6.94]
[1717423157107,17.31662847,166.55,166.48,6.94]
[1717423157286,17.31662847,166.54,166.48,6.94]
[1717423157488,21.75962847,166.56,166.48,6.94]
[1717423157711,2.222,166.52,166.48,6.94]
[1717423158218,19.53842847,166.53,166.48,6.94]
[1717423158515,2.2218,166.53,166.48,6.94]
[1717423158691,2.2219,166.52,166.48,6.94]
[1717423159088,17.31662847,166.56,166.5,6.94]
[1717423159333,59.33030193,166.62,166.44,0.17]
[1717423159490,9.1613,166.57,166.53,6.94]
[1717423159805,6.94,166.6,166.43,20.34]
[1717423159806,4.4417,166.6,166.48,27.76]
[1717423160011,4.4417,166.6,166.47,2.2225]
[1717423160203,101.6391732,166.62,166.45,2.2228]
[1717423160401,2.2218,166.53,166.48,6.94]
[1717423160609,4.4427,166.57,166.43,0.17]
[1717423160816,2.2219,166.52,166.44,2.2229]
[1717423161201,2.2218,166.53,166.48,6.94]
[1717423161706,2.2217,166.54,166.51,6.94]
[1717423162015,2.2217,166.54,166.52,6.94]
[1717423162214,2.2217,166.54,166.51,6.94]
[1717423162406,2.2215,166.56,166.51,6.94]
[1717423162604,12.290973,166.59,166.48,2.2224]
[1717423162605,2.2215,166.55,166.48,29.9824]
[1717423163117,2.2214,166.56,166.48,29.9824]
[1717423163319,12.290973,166.59,166.49,2.2223]
[1717423163320,2.2213,166.57,166.49,2.2223]
[1717423163701,2.2213,166.57,166.54,6.94]
[1717423163897,2.2214,166.56,166.54,6.94]
[1717423164103,2.2214,166.56,166.49,2.2223]
[1717423164334,2.2214,166.56,166.53,6.94]
[1717423164529,2.2213,166.57,166.53,6.94]
[1717423165101,2.2214,166.56,166.53,6.94]
[1717423165318,2.2213,166.57,166.53,6.94]
[1717423165724,2.2213,166.57,166.48,27.76]
[1717423165897,2.2213,166.57,166.53,6.94]
[1717423166802,2.2214,166.56,166.53,6.94]
[1717423167135,2.2214,166.56,166.48,27.76]
[1717423167136,2.2214,166.56,166.52,6.94]
[1717423168722,2.2214,166.56,166.48,29.9824]
[1717423168930,2.2214,166.56,166.53,6.94]
[1717423169736,2.2211,166.58,166.54,6.94]
[1717423170318,2.2212,166.57,166.54,6.94]
[1717423171033,2.2214,166.56,166.53,6.94]
[1717423171231,2.2214,166.56,166.52,6.94]
[1717423172236,2.2215,166.55,166.47,2.2225]
[1717423172448,2.2215,166.55,166.5,6.94]
[1717423172614,2.2214,166.56,166.51,6.94]
[1717423173022,2.2215,166.55,166.51,6.94]
[1717423174226,2.2214,166.56,166.51,6.94]
[1717423175115,2.2214,166.56,166.48,2.2224]
[1717423175317,6.6631,166.59,166.5,6.94]
[1717423175615,6.6631,166.59,166.42,11.116]
[1717423175616,2.2218,166.53,166.42,11.116]
[1717423175815,2.2217,166.54,166.46,2.2226]
[1717423176015,2.2218,166.53,166.5,6.94]
[1717423176255,7.0036,166.58,166.4,15.5648]
[1717423176256,0.34,166.58,166.4,15.5648]
[1717423176539,4.4432,166.55,166.44,2.2229]
[1717423176849,2.2221,166.51,166.47,6.94]
[1717423177416,4.4437,166.53,166.38,4.4476]
[1717423177619,4.7839,166.52,166.4,2.2234]
[1717423177838,4.4441,166.51,166.42,6.94]
[1717423178154,4.4441,166.51,166.35,4.4482]
[1717423178155,2.2227,166.47,166.4,2.2235]
[1717423178322,0.34,166.5,166.38,2.2238]
[1717423178323,2.2227,166.46,166.38,2.2238]
[1717423178522,2.2228,166.45,166.4,6.94]
[1717423179242,2.2232,166.43,166.39,6.94]
[1717423179649,2.2232,166.43,166.35,2.2242]
[1717423179846,2.2232,166.43,166.38,6.94]
[1717423180425,2.2232,166.43,166.35,2.2242]
[1717423180623,0.17,166.42,166.29,4.4498]
[1717423180849,2.2235,166.4,166.35,6.94]
[1717423181224,2.2234,166.41,166.35,6.94]
[1717423181431,2.2234,166.41,166.33,2.2244]
[1717423181635,2.2234,166.41,166.35,6.94]
[1717423181869,2.2235,166.4,166.32,2.2246]
[1717423182032,0.34,166.42,166.33,2.2244]
[1717423183325,2.2235,166.41,166.33,2.2244]
[1717423183663,2.3935,166.4,166.29,4.4498]
[1717423183864,2.2235,166.4,166.29,4.4498]
[1717423184028,2.2235,166.4,166.32,2.2245]
[1717423184722,0.34,166.39,166.31,2.2247]
[1717423185251,2.5637,166.39,166.31,2.2247]
[1717423185955,2.2238,166.38,166.3,2.2248]
[1717423186644,2.2238,166.38,166.31,2.2247]
[1717423187959,2.5637,166.39,166.31,2.2247]
[1717423188340,2.2237,166.39,166.31,2.2247]
[1717423188540,7.0101,166.4,166.32,2.2245]
[1717423188958,2.2237,166.39,166.32,2.2245]
[1717423189652,2.2241,166.36,166.29,2.2249]
[1717423189863,2.2241,166.36,166.28,2.2251]
[1717423190038,2.2242,166.35,166.28,2.2251]
[1717423190237,2.2241,166.36,166.28,2.2251]
[1717423190653,0.17,166.35,166.26,0.8174646]
[1717423190859,2.2241,166.36,166.28,2.225]
[1717423191844,0.17,166.37,166.28,2.225]
[1717423191845,2.2242,166.35,166.28,2.225]
[1717423192345,2.2241,166.36,166.28,2.225]
[1717423192553,0.17,166.37,166.27,2.2252]
[1717423192761,2.2242,166.35,166.28,2.2251]
[1717423193135,2.2242,166.35,166.27,2.2252]
[1717423193838,2.5643,166.34,166.27,2.2252]
[1717423194048,2.2243,166.34,166.27,2.2252]
[1717423194264,2.2243,166.34,166.26,3.0427646]
[1717423194668,2.2243,166.34,166.27,2.2252]
[1717423196164,2.2244,166.34,166.26,3.0427646]
[1717423196562,2.2244,166.34,166.27,2.2252]
[1717423197356,2.5642,166.35,166.26,0.8174646]
[1717423197556,2.5642,166.35,166.27,2.2252]
[1717423198345,2.2242,166.35,166.28,2.2251]
[1717423199263,2.2242,166.35,166.27,2.2252]
[1717423199446,0.17,166.34,166.26,0.8174646]
[1717423199645,0.34,166.36,166.26,0.8174646]
[1717423199952,2.2245,166.33,166.26,3.0427646]
[1717423200154,2.2243,166.34,166.27,2.2252]
[1717423200336,4.4466,166.4,166.28,6.6752]
[1717423200538,4.4466,166.4,166.31,8.8987]
[1717423200759,2.222,166.51,166.41,2.2233]
[1717423200971,11.123,166.52,166.36,4.448]
[1717423201174,8.901,166.52,166.38,4.4476]
[1717423201462,4.86442577,166.54,166.44,2.2229]
[1717423201668,6.6625,166.61,166.39,0.67634712]
[1717423201669,2.2212,166.58,166.43,0.17]
[1717423201958,30.5066523,166.7,166.43,0.17]
[1717423201959,29.72526748,166.6,166.43,34.46989158]
[1717423202155,2.2211,166.59,166.44,47.38708861]
[1717423202354,2.2211,166.58,166.46,2.2226]
[1717423202567,2.2213,166.57,166.45,2.2228]
[1717423202790,36.01,166.57,166.35,11.1203]
[1717423202957,36.01,166.57,166.41,2.2233]
[1717423203159,21.66005,166.58,166.4,0.17]
[1717423203387,2.2214,166.57,166.46,2.2227]
[1717423203590,2.2214,166.57,166.41,0.17]
[1717423203591,6.1728575,166.6,166.41,0.17]
[1717423203885,2.2211,166.58,166.42,33.1946531]
[1717423204060,2.221,166.59,166.46,2.2226]
[1717423204263,2.221,166.59,166.47,2.2226]
[1717423204459,18.01,166.6,166.49,2.2223]
[1717423204658,48.65969464,166.63,166.48,0.17]
[1717423204858,48.65969464,166.63,166.45,18.01]
[1717423205077,2.2206,166.62,166.51,2.222]
[1717423205280,2.2206,166.62,166.47,8.65366306]
[1717423205281,6.17217716,166.63,166.52,0.34]
[1717423205477,6.17217716,166.63,166.57,2.2212]
[1717423205682,6.17217716,166.63,166.56,2.2213]
[1717423205899,6.17217716,166.63,166.6,2.2208]
[1717423206076,8.653663,166.69,166.58,0.17]
[1717423206281,8.653663,166.69,166.54,2.2216]
[1717423206466,8.653663,166.69,166.55,2.2215]
[1717423206467,2.2199,166.68,166.55,2.2215]
[1717423206659,8.653663,166.69,166.57,2.2212]
[1717423206956,8.653663,166.69,166.54,0.17]
[1717423207193,15.5282,166.8,166.59,2.2209]
[1717423207194,6.16603136,166.72,166.59,2.2209]
[1717423207399,60.0,166.77,166.59,2.2209]
[1717423207571,13.3098,166.8,166.53,18.35]
[1717423207772,2.2188,166.76,166.63,2.2204]
[1717423207961,13.70821823,166.79,166.63,2.2204]
[1717423208172,13.70821823,166.79,166.56,20.0]
[1717423208173,2.2185,166.78,166.65,2.2201]
[1717423208375,13.70821823,166.79,166.64,0.34]
[1717423208376,2.2186,166.77,166.64,0.34]
[1717423208598,2.2186,166.77,166.6,20.0]
[1717423208921,6.16670075,166.79,166.61,0.34]
[1717423209385,2.2185,166.78,166.65,2.2201]
[1717423209702,6.16670075,166.79,166.61,0.34]
[1717423209703,8.38510075,166.79,166.67,2.2198]
[1717423209902,8.38510075,166.79,166.58,28.65366306]
[1717423209903,2.2186,166.77,166.65,2.2201]
[1717423210073,6.16670075,166.79,166.58,28.65366306]
[1717423210278,2.2185,166.78,166.66,2.22]
[1717423210503,6.16670075,166.79,166.69,2.2196]
[1717423210683,26.24521,166.82,166.71,2.2193]
[1717423210684,24.02721,166.82,166.71,2.2193]
[1717423211000,0.8174646,166.84,166.73,2.2191]
[1717423211489,3.0351646,166.84,166.72,0.34]
[1717423212580,6.495268,166.83,166.7,2.2194]
[1717423212794,2.2181,166.81,166.69,0.17]
[1717423212981,8.713168,166.83,166.7,2.2195]
[1717423213296,8.713168,166.83,166.65,20.0]
[1717423213297,6.495268,166.83,166.65,20.0]
[1717423213478,6.495268,166.83,166.57,60.0]
[1717423213479,2.219,166.74,166.6,2.2207]
[1717423213678,64.4359,166.82,166.59,20.74]
[1717423213679,0.17,166.73,166.59,20.74]
[1717423213879,0.34,166.73,166.52,8.77104435]
[1717423214096,0.34,166.73,166.59,2.2209]
[1717423214297,60.0,166.72,166.48,8.8899]
[1717423214513,0.34,166.71,166.53,20.74]
[1717423215085,0.34,166.71,166.52,2.2218]
[1717423215086,2.2205,166.63,166.52,2.2218]
[1717423215293,0.34,166.71,166.53,2.2217]
[1717423215294,0.17,166.71,166.53,2.2217]
[1717423215474,0.17,166.71,166.48,20.74]
[1717423215475,2.2203,166.64,166.52,20.74]
[1717423215689,2.2203,166.64,166.54,2.2216]
[1717423215886,0.17,166.71,166.54,2.2216]
[1717423216208,60.0,166.66,166.44,24.23]
[1717423216390,2.2207,166.61,166.5,2.2221]
[1717423216592,0.34,166.62,166.48,2.2224]
[1717423216785,0.34,166.62,166.44,24.23]
[1717423216992,58.3171,166.71,166.55,2.2215]
[1717423217301,58.3171,166.71,166.53,2.2217]
[1717423217302,60.0,166.7,166.53,2.2217]
[1717423217608,60.0,166.7,166.47,4.4452]
[1717423217609,4.4395,166.69,166.47,4.4452]
[1717423217814,105.0,166.7,166.46,33.1209]
[1717423217815,60.0,166.67,166.46,24.23]
[1717423217992,8.8781,166.71,166.46,24.23]
[1717423218193,4.4386,166.72,166.5,24.23]
[1717423218507,4.4377,166.76,166.61,2.2207]
[1717423218710,6.6556,166.78,166.61,2.2206]
[1717423218711,2.2194,166.71,166.61,2.2206]
[1717423219017,8.8729,166.8,166.56,20.0]
[1717423219018,60.0,166.75,166.56,20.0]
[1717423219182,4.4382,166.74,166.57,0.34]
[1717423219382,40.4482,166.74,166.57,0.34]
[1717423219820,2.2198,166.68,166.58,2.2211]
[1717423220127,8.8754,166.76,166.54,2.2215]
[1717423220128,2.2202,166.65,166.54,2.2215]
[1717423220283,2.2206,166.62,166.52,2.2218]
[1717423220611,36.01,166.72,166.5,18.01]
[1717423220910,4.4384,166.73,166.57,2.2211]
[1717423221100,0.17,166.72,166.53,18.01]
[1717423221412,2.2201,166.66,166.56,2.2213]
[1717423221708,4.4391,166.7,166.54,2.2216]
[1717423221915,0.17,166.69,166.49,20.0]
[1717423222216,2.2206,166.63,166.52,2.2219]
[1717423222522,0.34,166.62,166.5,2.2221]
[1717423222728,2.221,166.59,166.48,2.2223]
[1717423223016,2.561,166.6,166.49,2.2223]
[1717423223236,0.17,166.59,166.5,2.2221]
[1717423223394,0.17,166.59,166.51,2.222]
[1717423223395,0.34,166.59,166.51,2.222]
[1717423223791,0.17,166.59,166.53,2.2218]
[1717423224317,0.17,166.59,166.46,4.4453]
[1717423224318,2.2209,166.6,166.46,4.4453]
[1717423224622,2.2209,166.6,166.47,2.2225]
[1717423224623,2.2214,166.56,166.47,2.2225]
[1717423224805,2.2214,166.56,166.45,20.0]
[1717423224806,0.17,166.59,166.48,2.2224]
[1717423225008,0.17,166.59,166.45,20.0]
[1717423225009,0.34,166.59,166.49,2.2223]
[1717423225230,0.34,166.59,166.44,24.23]
[1717423225406,0.34,166.59,166.4,31.95481363]
[1717423225407,0.34,166.59,166.4,24.23]
[1717423225722,0.34,166.59,166.44,2.2228]
[1717423226107,0.34,166.59,166.45,2.2228]
[1717423226108,2.2216,166.54,166.45,2.2228]
[1717423226303,2.3918,166.53,166.4,24.23]
[1717423226502,2.392,166.52,166.42,2.2232]
[1717423226707,2.222,166.52,166.37,4.4478]
[1717423227117,0.34,166.53,166.37,4.4478]
[1717423227317,0.34,166.53,166.39,2.2235]
[1717423227533,2.222,166.52,166.42,2.2232]
[1717423227736,0.34,166.51,166.4,2.2235]
[1717423228028,0.34,166.51,166.35,1.74000625]
[1717423228029,2.223,166.44,166.35,1.74000625]
[1717423228326,15.5559,166.5,166.35,3.96420625]
[1717423228531,2.223,166.44,166.35,3.96420625]
[1717423228735,0.34,166.49,166.36,2.224]
[1717423229236,6.6658,166.53,166.33,24.23]
[1717423229237,0.34,166.5,166.33,24.23]
[1717423229434,2.2226,166.48,166.37,2.2239]
[1717423229726,0.17,166.47,166.38,2.2238]
[1717423229899,0.17,166.47,166.33,24.23]
[1717423229900,2.2227,166.47,166.33,24.23]
[1717423230104,2.2224,166.49,166.4,2.2235]
[1717423230330,6.6641,166.57,166.41,2.2233]
[1717423230331,2.222,166.51,166.41,2.2233]
[1717423230503,6.01,166.72,166.4,0.34]
[1717423230504,17.7733,166.6,166.4,0.34]
[1717423230734,2.2218,166.53,166.44,2.223]
[1717423231047,36.57241748,166.6,166.4,0.34]
[1717423231048,2.2215,166.56,166.4,0.34]
[1717423231254,2.2215,166.56,166.46,2.2226]
[1717423231255,2.2214,166.56,166.46,2.2226]
[1717423231446,29.90951748,166.6,166.41,24.23]
[1717423231623,2.221,166.59,166.43,4.4462]
[1717423231823,6.6685,166.6,166.49,2.2222]
[1717423231824,2.2211,166.58,166.49,2.2222]
[1717423232023,6.6685,166.6,166.49,2.2223]
[1717423232446,8.8895,166.6,166.49,2.2223]
[1717423232674,6.6685,166.6,166.5,2.2222]
[1717423232952,2.2208,166.61,166.48,0.34]
[1717423233154,36.01,166.66,166.48,0.34]
[1717423233444,118.75605263,166.67,166.48,0.34]
[1717423233445,2.2214,166.56,166.48,0.17]
[1717423233627,2.2216,166.55,166.46,2.2227]
[1717423233958,4.4415,166.61,166.46,2.2227]
[1717423234130,4.4415,166.61,166.38,15.5659]
[1717423234131,36.01,166.59,166.37,28.6778]
[1717423234339,2.222,166.51,166.41,2.2233]
[1717423234633,6.6637,166.58,166.38,0.75597484]
[1717423234820,2.5614,166.57,166.38,0.75597484]
[1717423235020,2.5614,166.57,166.41,24.23]
[1717423235021,0.17,166.57,166.41,24.23]
[1717423235225,2.2218,166.53,166.43,2.223]
[1717423235528,0.17,166.54,166.41,2.2232]
[1717423235758,2.2221,166.51,166.41,2.2234]
[1717423235936,44.8962,166.55,166.4,2.2235]
[1717423236135,2.2225,166.48,166.39,2.2236]
[1717423236339,2.2226,166.47,166.38,2.2238]
[1717423236568,36.01,166.52,166.32,28.6791]
[1717423236731,0.34,166.51,166.32,28.6791]
[1717423236928,42.6766,166.5,166.32,24.23]
[1717423237126,2.2231,166.43,166.34,2.2242]
[1717423237431,4.7847,166.49,166.36,2.224]
[1717423237631,4.7847,166.49,166.3,4.4495]
[1717423237632,0.34,166.49,166.3,8.8995]
[1717423237839,0.34,166.49,166.24,173.77222763]
[1717423237840,2.2228,166.46,166.36,2.2239]
[1717423238130,0.17,166.5,166.39,2.2236]
[1717423238332,2.2224,166.48,166.39,2.2236]
[1717423238549,2.2224,166.48,166.34,4.4486]
[1717423238550,6.6748,166.48,166.4,2.2235]
[1717423238764,0.17,166.47,166.34,4.4486]
[1717423238940,2.3926,166.47,166.38,2.2238]
[1717423239141,2.2229,166.45,166.35,0.17]
[1717423239487,6.6748,166.48,166.31,4.4495]
[1717423239635,2.223,166.44,166.32,0.17]
[1717423239836,2.2231,166.43,166.31,20.0]
[1717423240056,2.2231,166.43,166.34,2.2242]